Cogmind - Beta 16.1 @@@ ROGUE MODE // 2026.02.16 @ 17:54:43 Player: Megaknight51 Result: Destroyed by S-10 Pest with Light Assault Rifle Performance ------------- Evolutions (0) 0 Regions Visited (2) 400 Robots Destroyed (25) 125 Value Destroyed (507) 507 Prototype IDs (2) 40 Alien Tech Used (0) 0 Bonus (0) 0 TOTAL SCORE: 1072 Bonus ------- None Cogmind --------- Core Integrity 0/250 Matter 300/300 Energy 158/160 System Corruption 0% Temperature Cool (0) Movement Rolling (135) Ox3 Location -10/Mines Parts ------- > --- POWER (1) -------- Light Nuclear Core > --- PROPULSION (2) --- Wheel Compact Wheel > --- UTILITY (2) ------ Huge Storage Unit > --- WEAPON (2) ------- (None) > --- INVENTORY (25) --- Ion Engine Light Treads Light Treads Compact Wheel Compact Wheel Compact Wheel Heat Sink Sensor Array Signal Interpreter Signal Interpreter Improved Terrain Scanner Seismic Detector Medium Laser Beam Cannon Beam Cannon Beam Cannon Beam Cannon Grenade Launcher Mining Laser Peak State ------------ > --- POWER ------------ Light Nuclear Core > --- PROPULSION ------- Light Treads Wheel > --- UTILITY ---------- Huge Storage Unit Light Armor Plating > --- WEAPON ----------- Light Assault Rifle Light Assault Rifle > --- INVENTORY -------- Light Treads Compact Wheel Compact Wheel Compact Wheel Compact Wheel Heat Sink Sensor Array Signal Interpreter Signal Interpreter Improved Terrain Scanner Seismic Detector Medium Laser Beam Cannon Beam Cannon Beam Cannon Beam Cannon Grenade Launcher Mining Laser [Rating: 11] Favorites ----------- Power Light Ion Engine Engine Light Ion Engine Power Core Light Nuclear Core Propulsion Compact Wheel Treads Light Treads Wheel Compact Wheel Utility Seismic Detector Device Seismic Detector Storage Huge Storage Unit Protection Light Armor Plating Weapon Light Assault Rifle Energy Gun EM Pulse Gun Ballistic Gun Light Assault Rifle Special Weapon Mining Laser Special Melee Weapon Datajack Build | -11 -10 -10 ------- Run | Yrd Mat Min Slots Evolved . | . . . Power . | . . . Propulsion . | . . . Utility . | . . . Weapon . | . . . Parts Attached 22 | 7 11 4 Power 4 | 1 2 1 Engine 3 | 1 2 . Core 1 | . . 1 Reactor . | . . . Propulsion 6 | 2 3 1 Treads 2 | . 2 . Leg . | . . . Wheel 4 | 2 1 1 Hover . | . . . Flight . | . . . Utility 6 | 2 3 1 Device 2 | 1 1 . Storage 3 | 1 2 . Processor . | . . . Hackware . | . . . Protection 1 | . . 1 Artifact . | . . . Weapon 6 | 2 3 1 Energy Gun 1 | . 1 . Energy Cannon . | . . . Ballistic Gun 3 | 2 . 1 Ballistic Cannon . | . . . Launcher . | . . . Special Weapon 1 | . 1 . Impact Weapon . | . . . Slashing Weapon . | . . . Piercing Weapon . | . . . Special Melee Weapon 1 | . 1 . Unidentified Prototypes . | . . . Parts Lost 12 | . 7 5 Power 3 | . 2 1 Propulsion 2 | . 2 . Utility 2 | . 1 1 Weapon 5 | . 2 3 Highest Loss Streak 5 | . 3 5 To Critical Strikes . | . . . Average Backups 15 | 2 16 19 Power . | . . . Propulsion 4 | . 5 5 Utility 3 | . 3 6 Weapon 6 | . 6 7 Tool/Special . | . . . Unused Backups 20 | . 5 15 Power . | . . . Propulsion 7 | . 3 4 Utility 5 | . . 5 Weapon 8 | . 2 6 Tool/Special . | . . . Average Slot Usage (%) 97 | . 97 95 Engine 13 | . 13 8 Treads 9 | . 9 12 Wheel 18 | . 18 15 Device 11 | . 12 1 Storage 14 | . 14 14 Energy Gun 3 | . 3 . Ballistic Gun 21 | . 21 25 Special Weapon 2 | . 2 . Peak Build Rating 11 | 7 9 11 Average Rating 8 | 5 8 9 On Entrance 5 | . 7 9 Avg Prop Armor Cover (%) 12 | . 12 10 Naked Turns . | . . . Heaviest Build 90 | 12 89 90 Greatest Support 32 | 32 32 26 Greatest Overweight (x) 8 | 3 8 8 Average Overweight (x) 3 | . 3 5 Largest Inventory Capacity 25 | 8 25 25 Average Capacity 20 | 7 21 25 Most Carried 21 | 7 21 20 Average Carried 15 | 2 16 19 Final Capacity 25 | 8 25 25 Final Carried 20 | 7 20 19 Class Distribution -------------------- 100% | Mutant Dominant Class ---------------- Mutant | -10/Materials Mutant | -10/Mines Resources | -11 -10 -10 ----------- Run | Yrd Mat Min Matter Collected 778 | 280 425 73 Remotely . | . . . Salvage Created 896 | 129 685 82 Parts 50 | 12 35 3 Haulers Intercepted 2 | . 2 . Recyclers Shooed . | . . . Parts Field Recycled . | . . . Retrieved Matter . | . . . Parts Self-Destructed . | . . . Prevented . | . . . Parts Restored . | . . . Kills | -11 -10 -10 ------- Run | Yrd Mat Min Combat Hostiles Destroyed 16 | . 14 2 Guns 14 | . 12 2 AOE 2 | . 2 . Classes Destroyed 7 | 2 5 . Worker 1 | . 1 . Tunneler 3 | 3 . . Hauler 2 | . 2 . Recycler 2 | 1 1 . Mechanic 1 | . 1 . Swarmer 6 | . 6 . Grunt 10 | . 8 2 Best Kill Streak 5 | 2 5 1 Combat Bots Only 3 | . 3 1 Max Kills in Single Turn 2 | 1 2 1 Gunslinging . | . . . Exploded 1 | . 1 . Melee . | . . . Uniques/NPCs Destroyed . | . . . Combat | -11 -10 -10 -------- Run | Yrd Mat Min Hostile Shots Fired 120 | . 95 25 Missed 30 | . 26 4 Hits 90 | . 69 21 Projectile 90 | . 69 21 AOE 4 | . . 4 Damage Taken 1111 | . 741 370 Core 251 | . 160 91 Absorbed by Shields . | . . . Core Remaining (%) 100 | 100 . . Volleys Fired 112 | 15 81 16 Largest 2 | 2 2 2 Hottest 100 | 40 100 40 Shots Fired 207 | 30 146 31 Gun 203 | 30 142 31 Cannon . | . . . Launcher . | . . . Special 4 | . 4 . Kinetic 175 | 30 114 31 Thermal 4 | . 4 . Explosive . | . . . Electromagnetic 28 | . 28 . Robot Hit Streak 10 | 7 10 7 Robot Miss Streak 6 | 2 6 2 Penetration Max . | . . . Secondary Targets . | . . . Shots Hit Robots 135 | 20 93 22 Core Hits 44 | 8 31 5 Critical Kills . | . . . Critical Parts Destroyed 2 | 1 . 1 Critical Strikes 2 | 1 . 1 Destroy 2 | 1 . 1 Melee Attacks 1 | . 1 . Impact . | . . . Slashing . | . . . Piercing . | . . . Sneak Attacks 1 | . 1 . Combat Hostiles . | . . . Follow-up Attacks . | . . . Damage Inflicted 1664 | 229 1219 216 Guns 1516 | 229 1071 216 Cannons . | . . . Explosions 148 | . 148 . Melee . | . . . Ramming . | . . . Kinetic 1244 | 229 799 216 Thermal 106 | . 106 . Explosive . | . . . Electromagnetic 314 | . 314 . Impact . | . . . Slashing . | . . . Piercing . | . . . Highest Corruption . | . . . Average Corruption . | . . . Corruption Purged . | . . . Corruption Blocked . | . . . Overload Shots . | . . . Overflow Damage 14 | . 14 . Projectiles . | . . . Explosions 14 | . 14 . Melee . | . . . Knockbacks . | . . . Impact . | . . . Kinetic . | . . . Secondary . | . . . Self-Inflicted Damage 63 | . 63 . Shots 2 | . 2 . Rammed . | . . . Targets Rammed . | . . . Kicked . | . . . Crushed . | . . . Highest Temperature 104 | . 104 35 Average Temperature 28 | . 33 16 Received Heat Transfer 318 | . 213 105 Siege Activations . | . . . Martial Activations . | . . . Shielding Activations . | . . . Robots Disrupted . | . . . Combat Hostiles . | . . . Robots Corrupted . | . . . Combat Hostiles . | . . . Parts Fried 1 | . 1 . Impact Corruptions . | . . . Robots Melted . | . . . Combat Hostiles . | . . . Parts Melted . | . . . Heat Transferred 200 | . 200 . Parts Sabotaged . | . . . Parts Stolen . | . . . Parts Stripped . | . . . Power Chain Reactions 2 | . 2 . Alert | -11 -10 -10 ------- Run | Yrd Mat Min Maximum Alert Level . | . . . Low Security (%) 100 | 100 100 100 Level 1 . | . . . Level 2 . | . . . Level 3 . | . . . Level 4 . | . . . Level 5 . | . . . High Security . | . . . Max Security . | . . . Peak Influence 154 | 10 154 33 Initial 13 | . . 13 Average 36 | 1 40 12 Influence Increases 600 | 20 530 50 Destroy 0b10 Robot/C 320 | . 280 40 Destroy 0b10 Robot/NC 45 | 20 25 . Destroy Leader 74 | . 64 10 Successful Hack 35 | . 35 . Select Force Hacks 60 | . 60 . Disable Machine 45 | . 45 . Destroy Structure 6 | . 6 . Lose Combat Pursuer 15 | . 15 . Influence Decreases 600 | 20 494 86 Entered New Map 23 | . . 23 Time Decay 392 | 20 332 40 Lost Part 83 | . 60 23 Purge Threat 102 | . 102 . Squads Dispatched 3 | . 3 . Investigation 3 | . 3 . Extermination . | . . . Reinforcement . | . . . Assault . | . . . Garrison . | . . . Intercept . | . . . Searches Triggered . | . . . Construction Impeded . | . . . Haulers Reinforced . | . . . Active Scanning Responses . | . . . Cargo Convoy Interrupts . | . . . Stealth | -11 -10 -10 --------- Run | Yrd Mat Min Distress Signals 4 | . 4 . Communications Jammed . | . . . Distress Signals . | . . . Times Spotted 34 | . 26 8 Peak Tracking Total 6 | . 6 5 Tactical Retreats 1 | . 1 . Traps | -11 -10 -10 ------- Run | Yrd Mat Min Traps Triggered 1 | . 1 . Indirectly . | . . . Trap Hack Attempts . | . . . Triggered . | . . . Disarmed . | . . . Reprogrammed . | . . . Reused . | . . . Traps Extracted . | . . . Installed . | . . . Triggered . | . . . Machines | -11 -10 -10 ---------- Run | Yrd Mat Min Machines Disabled 3 | . 3 . Max in Single Turn 2 | . 2 . Machines Repaired . | . . . Machines Dismantled . | . . . Machines Sabotaged . | . . . Overloaded Fab Kills . | . . . Hacking | -11 -10 -10 --------- Run | Yrd Mat Min Machines Accessed 9 | . 9 . Terminals 7 | . 7 . Fabricators . | . . . Repair Stations . | . . . Recycling Units 2 | . 2 . Scanalyzers . | . . . Garrison Access . | . . . Total Hacks 30 | . 30 . Successful 16 | . 16 . Failed 13 | . 13 . Catastrophic 1 | . 1 . Database Lockouts 1 | . 1 . Manual 14 | . 14 . Terminals 28 | . 28 . Fabricators . | . . . Repair Stations . | . . . Recycling Units 2 | . 2 . Scanalyzers . | . . . Garrison Access . | . . . Terminal Hacks 8 | . 8 . Robot Analysis 2 | . 2 . Prototype ID Bank 1 | . 1 . Unreport Threat 2 | . 2 . Hauler Manifests 1 | . 1 . Registered Components 1 | . 1 . Zone Layout 1 | . 1 . Fabricator Hacks . | . . . Repair Station Hacks . | . . . Recycling Unit Hacks . | . . . Scanalyzer . | . . . Garrison Access Hacks . | . . . Unauthorized Hacks 8 | . 8 . Terminals 6 | . 6 . Botnet 6 | . 6 . Fabricators . | . . . Repair Stations . | . . . Recycling Units 2 | . 2 . Tunnel 2 | . 2 . Scanalyzers . | . . . Garrison Access . | . . . Data Cores Recovered . | . . . Used . | . . . Hacking Detections 6 | . 6 . Full Trace Events 1 | . 1 . Feedback Events . | . . . Feedback Blocked . | . . . Robot Schematics Acquired . | . . . Robots Built . | . . . Authchips . | . . . Time . | . . . Total Robot Build Rating . | . . . Part Schematics Acquired . | . . . Parts Built . | . . . Authchips . | . . . Time . | . . . Total Part Build Rating . | . . . Part Studies Acquired . | . . . Parts Repaired . | . . . Time . | . . . Parts Recycled . | . . . Recycled Matter . | . . . Retrieved Matter . | . . . Retrieved Components . | . . . Parts Scanalyzed . | . . . Part Schematics Acquired . | . . . Parts Damaged . | . . . Bothacking | -11 -10 -10 ------------ Run | Yrd Mat Min Used RIF Installer . | . . . Robots Hacked 1 | . 1 . Non-combat 1 | . 1 . Combat . | . . . Robot Hacks Applied 1 | . 1 . find_recycling 1 | . 1 . Relay Couplers Released . | . . . Fabnet Peak Effective % . | . . . Robots Rewired . | . . . Allies Hacked . | . . . Hacks Repelled . | . . . Allies | -11 -10 -10 -------- Run | Yrd Mat Min Total Allies . | . . . Largest Group . | . . . Highest-Rated Group . | . . . Highest-Rated Ally . | . . . Total Orders . | . . . Ally Attacks . | . . . Total Damage . | . . . Kills . | . . . Allies Corrupted . | . . . Allies Melted . | . . . Intel | -11 -10 -10 ------- Run | Yrd Mat Min Active Infowar (turns) 1369 | 78 1283 8 Seismic 1369 | 78 1283 8 Robot Analysis Total 2 | . 2 . Derelict Logs Recovered . | . . . Drone Launches . | . . . Drone Recoveries . | . . . Exploration | -11 -10 -10 ------------- Run | Yrd Mat Min Turns Passed 1656 | 126 1433 97 Spaces Moved 865 | 66 776 23 Core 17 | 17 . . Treads 2 | . 2 . Legs . | . . . Wheels 846 | 49 774 23 Hover . | . . . Flight . | . . . Fastest Speed 50 | 50 100 135 Average Speed 142 | 102 145 168 Slowest Speed 480 | 200 480 200 Overloaded Moves . | . . . Propulsion Burnouts . | . . . Robots Hopped . | . . . Potential Cave-ins . | . . . Cave-ins Triggered . | . . . Exploration Rate (%) 33 | 3 90 7 Regions Visited 2 Branch Regions 1 Pre-discovered Areas 2 | . 2 . Known Exits Taken . | . . . Unknown Exits Taken 2 | 1 1 . Scrap Searched . | . . . Spaces Dug 3 | . 3 . Terrain Destroyed 5 | . 5 . Melee . | . . . Projectile 3 | . 3 . AOE 2 | . 2 . Terrain Rammed . | . . . Walls Destroyed . | . . . Machines Disabled . | . . . Actions | -11 -10 -10 --------- Run | Yrd Mat Min Total 1083 | 94 935 54 Wait 36 | . 26 10 Move 863 | 65 775 23 Hop . | . . . Pick Up 31 | 7 23 1 Fast Attach 11 | 7 4 . Attach 6 | . 4 2 Detach 1 | . 1 . Swap 14 | . 12 2 Drop 8 | . 8 . Fire 112 | 15 81 16 Melee 1 | . 1 . Ram . | . . . Kick . | . . . Crush . | . . . Escape Stasis . | . . . Rewire . | . . . Trap . | . . . Miscellaneous . | . . . Route ------- -11/Scrapyard -10/Materials (discovered 5 exits: [*Mat x3] / [*Min x2]) -10/Mines History --------- Turn | Location | Event 19 | -11/Scrapyard | Discovered new exit (range 16) 127 | -11/Scrapyard | Entered Materials 277 | -10/Materials | Discovered new exit (range 10) 312 | -10/Materials | Build established: Mutant 362 | -10/Materials | Central database locked down 860 | -10/Materials | Discovered new exit (range 15) 930 | -10/Materials | Discovered new exit (range 21) 1161 | -10/Materials | Core integrity fell below 50% 1215 | -10/Materials | Lost 3 parts (1p1n1w) 1283 | -10/Materials | Discovered new exit (range 7) 1398 | -10/Materials | Discovered new exit (range 12) 1560 | -10/Materials | Entered Mines 1622 | -10/Mines | Met a Derelict bent on vengeance 1635 | -10/Mines | Assembled infested the area 1643 | -10/Mines | Core integrity fell below 20% 1657 | -10/Mines | Destroyed by S-10 Pest with Light Assault Rifle Last Messages --------------- 01618_ R-06 Scavenger collects Aluminum Leg. 01622_ Acquired 69 matter. 01625_ Acquired 2 matter. 01628_ K-01 Serf cleans the Core Extractor. 01631_ Acquired Ion Engine. 01632_ K-01 Serf cleans the Core Extractor. 01635_ ALERT: Infestation in the mines, dispatching Demolisher response squad. 01642_ C-45 Heavy ARC bursts open, deploying its payload. 01642_ D-53 Grenadier unfolds itself. 01643_ Lgt. Assault Rifle destroyed. 01643_ K-01 Serf destroyed. 01645_ K-01 Serf cleans the Core Extractor. 01645_ Lgt. Assault Rifle destroyed. 01645_ Lgt. Armor Plating destroyed. 01645_ Core Extractor disabled. 01649_ U-05 Engineer lays Concrete. 01651_ K-01 Serf collects debris. 01651_ U-05 Engineer lays Concrete. 01655_ K-01 Serf collects debris. Map ----- +----------------------------------------------------+ | ???????????????????????????????????????? | | ???????????????????????????????????????? | | ???????????????????????????????????????? | | ???????????????????????????????????????? | | ???????????????????????????????????????? | | ???????????????????????????????????????? | | ???????????????????????????????????????? | | ???????????????????????????????????????? | | ???????????????????????????????????????? | | ???????????????????????????????????????? | | ???????????????????????????????????????? | | ???????????????????????????????????????? | | ???????????????????????????????????????? | | ???????????????????????????????????????? | | ???????????????????????????????????????? | | ???????????????????????????????????????? | | ???????????????????????????????????????? | | ???????????????????????????????????????? | | ???????????????????????????????????????? | | ???????????????????????????????????????? | | ???????????????????????????????????????? | | ??????????????????????? #??????????????? | | ????????????????????? #??????????????? | | ?############?????? #???????????????? | | ?# #####s #????????????????? | | ?# "" @ss #????????????????? | | ?# ##### #???????????????? | | ?# #?????? #??????????????? | | ## = #???????? #??????????????? | | # ###?????????? #??????????????? | | # ##????????????????????????????? | | # ##?????????????????????????????? | | # #??????????????????????????????? | | # ##??????????????????????????????? | | # #???????????????????????????????? | | #### ###???????????????????????????????? | | ???#"#?????????????????????????????????? | | ???#%#?????????????????????????????????? | | ???#"#?????????????????????????????????? | | ???# #?????????????????????????????????? | | ??? ?????????????????????????????????? | | ??? ?????????????????????????????????? | | ??? ?????????????????????????????????? | | ??? ?????????????????????????????????? | | ??? ?????????????????????????????????? | | ??? ?????????????????????????????????? | | ???###?????????????????????????????????? | | ???????????????????????????????????????? | | ???????????????????????????????????????? | | ???????????????????????????????????????? | +----------------------------------------------------+ Best States ------------- Heat Dissipation 25 Energy Generation 14 Energy Capacity 250 Matter Stores 300 Matter Capacity 300 Sight Range 16 Terrain Scan Density 10 Armor Coverage 150 Evasion (%) 40 Recoil Reduction 1 Item Schematics ----------------- None Robot Schematics ------------------ None Fabricated ------------ Nothing Repaired ---------- Nothing Studied --------- None Alien Tech Used ----------------- None Achievements -------------- None Challenges ------------ None Game ------ Seed OpticalSegregatorDeck Manual? 0 Play Time 00:10:38 Cumulative 77.8 hours Start 2026.02.16 @ 17:44:43 End 2026.02.16 @ 17:54:43 Sessions 1 Manual Loads 0 Difficulty Rogue Special Mode None Game No. 164 Rogue 164 Adventurer 0 Explorer 0 Win Type - Total 1 Types 1/0/0/0/0/0/0/0/0/0 Lore% 49 Gallery% 37 Achievement% 36 Wizard Run 0 Options --------- Layout 0 ASCII 0 Keyboard 1 Movement Arrows Keybinds 0 Fullscreen 1 Font 18/Smallcaps Map View 76x50 Zoom Use 71% Tactical HUD 1 Map Filters NONE Filters NONE Steam 1 RUN: 4762d3fb-ad8a-4e54-8687-50674b751f4c